bitfinex/quotes_ETHUSD_20250724
["timestamp","ask_amount","ask_price","bid_price","bid_amount"]
[1753317391497,0.1368,3642.8,3642.7,2.74521646]
[1753317391683,0.002,3643.1,3642.7,3.53294281]
[1753317391996,0.002,3643.1,3643.0,0.1368]
[1753317392362,0.002,3643.1,3643.0,3.32049039]
[1753317392865,0.002,3643.1,3643.0,4.10139039]
[1753317393079,0.002,3643.3,3643.2,2.7448397]
[1753317393294,0.002,3643.3,3643.2,3.6969397]
[1753317393481,0.002,3643.3,3643.2,4.1356397]
[1753317396606,2.74676436,3643.3,3642.9,0.7711]
[1753317396799,0.03431049,3643.2,3642.9,0.1368]
[1753317396969,0.03630955,3643.3,3643.0,0.4387]
[1753317397300,0.002,3643.3,3643.0,0.4387]
[1753317397498,0.002,3643.3,3643.1,0.4387]
[1753317397871,0.002,3643.3,3643.2,0.4387]
[1753317398887,0.002,3643.3,3642.9,0.1368]
[1753317399107,0.002,3643.3,3643.2,0.4387]
[1753317399282,0.002,3643.3,3642.9,0.1368]
[1753317399478,0.002,3643.3,3643.0,0.4433]
[1753317400191,0.002,3643.3,3643.1,0.4433]
[1753317400771,0.002,3643.3,3642.9,0.1368]
[1753317400772,2.74678153,3643.3,3642.9,0.1368]
[1753317400988,2.74499039,3643.0,3642.9,0.1368]
[1753317401199,2.74493737,3643.1,3642.9,0.1368]
[1753317401405,0.002,3643.3,3642.9,0.1368]
[1753317401603,0.002,3643.3,3643.0,0.4433]
[1753317401770,2.7448397,3643.2,3643.0,0.4433]
[1753317402268,2.74679334,3643.3,3643.0,0.4433]
[1753317402579,2.74679334,3643.3,3642.9,0.1368]
[1753317402784,2.7448448,3643.2,3643.0,0.4433]
[1753317404182,2.74491504,3643.1,3643.0,0.4433]
[1753317404383,2.74491504,3643.1,3642.9,0.1368]
[1753317404600,2.74491504,3643.1,3642.9,0.5801]
[1753317404913,2.74521646,3642.7,3642.6,0.001]
[1753317405283,3.18141646,3642.7,3642.6,0.001]
[1753317406488,3.21573166,3642.7,3642.6,0.001]
[1753317407516,5.77953166,3642.7,3642.6,0.001]
[1753317407674,6.18141646,3642.7,3642.6,0.001]
[1753317407874,7.00011646,3642.7,3642.6,0.001]
[1753317409010,22.05011646,3642.7,3642.6,0.001]
[1753317411202,6.64519182,3642.6,3642.5,1e-08]
[1753317411395,11.85439182,3642.6,3642.5,1e-08]
[1753317412032,26.35439182,3642.6,3642.5,1e-08]
[1753317412534,26.35439182,3642.6,3641.3,0.001]
[1753317412535,2.74619651,3641.4,3641.3,0.001]
[1753317412698,10.79459651,3641.4,3641.3,0.001]
[1753317413137,11.23079651,3641.4,3641.3,0.001]
[1753317413431,10.79459651,3641.4,3641.3,0.001]
[1753317413636,11.23079651,3641.4,3641.3,0.001]
[1753317414631,10.79459651,3641.4,3641.3,0.001]
[1753317416844,11.23079651,3641.4,3641.3,0.001]
[1753317417755,11.78079651,3641.4,3641.3,0.001]
[1753317420331,10.79559651,3641.4,3641.3,0.001]
[1753317420768,2.74601906,3641.7,3641.3,0.001]
[1753317420970,4.223,3641.6,3641.3,0.4443]
[1753317421168,5.74612161,3641.5,3641.3,0.001]
[1753317421341,3.0,3641.7,3641.4,0.4433]
[1753317421546,5.74619651,3641.4,3641.3,0.001]
[1753317421828,9.96919651,3641.4,3641.3,0.001]
[1753317422168,10.72579651,3641.4,3641.3,0.001]
[1753317423971,2.74521646,3642.7,3641.3,1.2154]
[1753317424277,2.74578811,3642.0,3641.3,1.2154]
[1753317424476,4.223,3641.9,3641.3,1.2154]
[1753317424644,3.0,3641.8,3641.3,1.2154]
[1753317424841,3.0,3641.8,3641.5,2.74612024]
[1753317425178,3.0,3642.3,3641.8,0.809]
[1753317425361,3.0,3642.1,3641.6,1.2342]
[1753317425579,3.0,3641.9,3641.7,0.4433]
[1753317425786,4.223,3641.8,3641.7,0.4433]
[1753317426156,4.223,3641.8,3641.7,3.18925969]
[1753317426406,5.74559761,3642.2,3641.7,0.4433]
[1753317426558,5.74559761,3642.2,3641.6,3.53692363]
[1753317426559,4.223,3642.1,3641.6,3.53692363]
[1753317426883,3.0,3642.0,3641.8,0.4433]
[1753317427186,7.223,3641.9,3641.8,0.4433]
[1753317429086,7.223,3641.9,3641.8,3.18919488]
[1753317429382,7.223,3641.9,3641.8,0.4433]
[1753317430501,7.223,3641.9,3641.3,0.001]
[1753317430502,3.0,3641.8,3641.3,0.001]
[1753317430796,2.74619651,3641.4,3641.3,0.001]
[1753317430958,10.00352396,3641.4,3641.3,0.001]
[1753317431159,9.96919651,3641.4,3641.3,0.001]
[1753317432856,7.223,3641.4,3641.3,0.001]
[1753317433061,9.96919651,3641.4,3641.3,0.001]
[1753317433487,9.19919651,3641.4,3641.3,0.001]
[1753317435596,6.453,3641.4,3641.3,0.001]
[1753317435767,9.19919651,3641.4,3641.3,0.001]
[1753317436667,6.453,3641.4,3641.3,0.001]
[1753317437299,6.453,3641.4,3641.3,0.457]
[1753317437494,3.0,3641.4,3641.3,0.457]
[1753317437701,4.223,3641.4,3641.3,4.60509633]
[1753317437877,4.223,3641.4,3641.3,1.85887288]
[1753317438273,4.223,3641.4,3641.3,4.60514481]
[1753317439079,0.1368,3641.9,3641.3,1.85887288]
[1753317439276,4.223,3641.8,3641.4,0.456]
[1753317439562,4.223,3641.8,3641.5,2.7461211]
[1753317439765,4.223,3641.8,3641.6,0.456]
[1753317440275,4.223,3641.8,3641.7,0.456]
[1753317443617,4.225,3641.8,3641.7,0.456]
[1753317450652,2.74505387,3643.0,3642.5,66.49044273]
[1753317450848,4.6518,3642.6,3642.5,66.49044273]
[1753317451072,7.39709182,3642.6,3642.5,66.49044273]
[1753317451419,7.94709182,3642.6,3642.5,66.49044273]
[1753317452707,10.94709182,3642.6,3642.5,62.25721689]
[1753317453107,11.53936936,3642.6,3642.5,7.05476908]
[1753317453660,12.35036936,3642.6,3642.5,7.05476908]
[1753317459038,4.11679651,3641.4,3641.3,0.001]
[1753317459362,11.37212396,3641.4,3641.3,0.001]
[1753317459551,11.80889651,3641.4,3641.3,0.001]
[1753317462447,12.40080592,3641.4,3641.3,0.001]
[1753317463225,11.80889651,3641.4,3641.3,0.001]
[1753317463626,11.33779651,3641.4,3641.3,0.001]
[1753317464120,3.0,3641.4,3641.3,0.001]
[1753317464335,4.221,3641.4,3641.3,0.4528]
[1753317464657,0.8032,3642.4,3641.3,0.4528]
[1753317464884,0.74066483,3642.9,3641.5,0.7598]
[1753317464885,0.8032,3642.9,3641.5,0.7598]
[1753317465061,2.74521646,3642.7,3641.6,0.4518]
[1753317465224,7.221,3642.6,3641.7,0.7598]
[1753317465567,7.223,3642.6,3641.9,2.74576096]
[1753317465876,4.223,3642.6,3642.0,0.4518]
[1753317466040,4.223,3642.6,3642.1,3.5736687]
[1753317466370,4.223,3642.6,3642.3,2.74546605]
[1753317466554,4.223,3642.6,3642.5,3.57336719]
[1753317466555,0.002,3642.6,3642.5,3.57336719]
[1753317466758,0.002,3642.6,3642.5,4.02516719]
[1753317466922,0.002,3643.1,3643.0,3.57299039]
[1753317467323,0.002,3643.1,3643.0,4.02479039]
[1753317469229,0.002,3643.1,3643.0,4.17498389]
[1753317469653,0.002,3643.1,3643.0,4.16159039]
[1753317470562,0.002,3643.1,3643.0,8.38259039]
[1753317470770,0.002,3643.1,3643.0,9.49669694]
[1753317470970,0.002,3643.1,3643.0,9.49569694]
[1753317473749,0.002,3643.1,3643.0,5.27569694]
[1753317473965,0.002,3643.1,3643.0,8.38159039]
[1753317475074,0.002,3643.1,3643.0,8.38059039]
[1753317476091,0.002,3643.1,3643.0,4.16159039]
[1753317476308,0.002,3643.1,3643.0,8.38059039]
[1753317477448,0.002,3643.1,3643.0,4.16159039]
[1753317477682,0.002,3643.1,3643.0,9.07125732]
[1753317478246,0.002,3643.1,3643.0,7.79145732]
[1753317478452,0.002,3643.1,3643.0,8.24325732]
[1753317478653,0.002,3643.1,3643.0,9.06785732]
[1753317485085,0.002,3643.1,3643.0,9.61785732]
[1753317485649,0.002,3643.1,3643.0,12.61785732]
[1753317485858,1e-08,3643.1,3643.0,12.61785732]
[1753317486055,1e-08,3643.3,3643.2,4.0589397]
[1753317486259,1e-08,3643.3,3643.2,12.8071594]
[1753317486486,1e-08,3643.3,3643.2,13.3957594]
[1753317490807,0.042,3643.9,3643.2,13.3957594]
[1753317490959,1e-08,3644.6,3644.5,4.10376061]
[1753317491286,1e-08,3644.6,3644.5,9.14233138]
[1753317491456,1e-08,3644.6,3644.5,9.58973138]
[1753317491856,1e-08,3644.6,3644.5,4.82273138]
[1753317492167,1e-08,3644.6,3644.5,9.04173138]
[1753317494184,1e-08,3644.6,3644.5,4.82273138]
[1753317494679,1e-08,3644.6,3644.5,9.04073138]
[1753317496975,1e-08,3644.6,3644.5,4.82273138]
[1753317497174,1e-08,3644.6,3644.5,9.03973138]
[1753317498269,1e-08,3644.6,3644.5,9.25000616]
[1753317498670,1e-08,3644.6,3644.5,9.80000616]
[1753317498865,1e-08,3644.6,3644.5,5.58300616]
[1753317499171,1e-08,3644.6,3644.5,9.79900616]
[1753317500802,1e-08,3644.6,3643.9,2.74431241]
[1753317501005,1e-08,3644.6,3643.8,1.2779]
[1753317501006,0.4504,3644.5,3643.8,1.2779]
[1753317501318,1e-08,3644.6,3644.2,2.7440709]
[1753317501319,0.4504,3644.4,3644.2,2.7440709]
[1753317501479,1e-08,3644.6,3644.5,2.74386061]
[1753317501799,1e-08,3644.6,3644.5,7.37086504]
[1753317501974,1e-08,3644.6,3644.5,7.81826504]
[1753317502375,1e-08,3644.6,3644.5,3.60126504]
[1753317502580,1e-08,3644.6,3644.5,3.15386504]
[1753317502787,1e-08,3644.6,3644.5,2.74386061]
[1753317502988,1e-08,3644.6,3644.5,4.221]
[1753317503574,0.45040001,3644.6,3644.4,2.74393392]
[1753317503774,0.45040001,3644.6,3644.4,4.221]
[1753317503970,0.45040001,3644.6,3644.5,4.221]
[1753317504911,0.45040001,3644.6,3644.5,6.96486061]
[1753317505072,0.45040001,3644.6,3644.5,2.74386061]
[1753317505384,0.4504,3644.9,3644.5,6.96486061]
[1753317505582,2.59003528,3645.1,3644.5,6.96486061]
[1753317505905,0.4504,3644.8,3644.5,4.221]
[1753317506211,0.4504,3644.8,3644.5,6.9648606]
[1753317507412,0.4504,3644.8,3644.5,4.221]
[1753317507612,0.4504,3645.1,3644.6,2.74374149]
[1753317507772,3.002,3645.4,3644.7,4.22]
[1753317507976,5.74521434,3645.4,3644.7,6.96368353]
[1753317508176,0.7841,3645.3,3644.8,2.74362433]
[1753317508377,1.2345,3645.3,3644.8,2.74362433]
[1753317508911,3.4504,3645.2,3644.7,6.96370278]
[1753317509080,3.4504,3645.2,3644.9,2.74354729]
[1753317509272,0.4504,3645.2,3645.0,2.74347872]
[1753317509477,0.4504,3645.2,3644.9,2.74353266]
[1753317510177,0.4504,3645.2,3645.0,2.74345445]
[1753317510389,0.4504,3645.2,3644.7,4.22]
[1753317510585,0.4504,3645.2,3645.0,2.74344171]
[1753317510793,0.9209,3645.3,3645.0,2.74344171]
[1753317511116,0.9209,3645.3,3644.7,4.22]
[1753317511276,0.9209,3645.3,3645.1,2.74334542]
[1753317511688,0.9209,3645.3,3645.2,2.74333369]
[1753317511981,0.1368,3645.3,3645.2,2.74333369]
[1753317512381,0.1368,3645.3,3645.0,2.74341829]
[1753317512382,0.5872,3645.3,3645.0,2.74342604]
[1753317513213,0.5872,3645.3,3644.8,2.74358065]
[1753317513214,0.4504,3645.2,3644.8,2.74358065]
[1753317513383,0.4504,3645.2,3644.8,6.95958065]
[1753317513583,0.4504,3645.2,3644.9,2.74354912]
[1753317514010,0.1368,3645.3,3644.9,2.74354912]
[1753317514211,0.1368,3645.3,3645.0,2.74347455]
[1753317514581,0.1368,3645.3,3644.9,2.7435314]
[1753317515686,0.1368,3645.3,3644.8,6.95960871]
[1753317516012,0.03429167,3645.2,3644.9,2.74354462]
[1753317516223,0.03429167,3645.2,3644.8,4.216]
[1753317516525,0.03429167,3645.2,3644.9,2.7435169]
[1753317516891,0.1368,3645.3,3645.0,2.74345448]
[1753317517500,0.1368,3645.3,3644.8,4.216]
[1753317517705,0.4504,3645.2,3644.9,2.74355879]
[1753317518106,0.1368,3645.3,3644.9,2.74355879]
[1753317518693,0.1368,3645.3,3645.0,2.7434806]
[1753317518922,0.1368,3645.3,3644.8,6.95963404]
[1753317519092,0.1368,3645.3,3645.0,2.74344044]
[1753317519631,0.1368,3645.3,3644.9,2.74352818]
[1753317519805,0.6005,3645.3,3644.9,2.74352818]
[1753317519999,0.49799167,3645.2,3644.8,4.216]
[1753317520237,0.4637,3645.1,3644.7,2.74366172]
[1753317520398,0.4637,3645.1,3644.8,2.74363309]
[1753317520722,0.4637,3645.1,3644.7,2.74368779]
[1753317521432,0.4637,3645.1,3644.8,2.74362716]
[1753317522028,0.6005,3645.3,3644.8,2.74362716]
[1753317522229,0.6005,3645.3,3644.9,2.74351828]
[1753317523498,0.6005,3645.3,3644.8,2.74361288]
[1753317523698,0.6005,3645.3,3644.9,2.74354799]
[1753317524724,0.002,3645.4,3645.3,2.74325844]
[1753317525123,0.002,3645.4,3645.3,3.17285844]
[1753317525703,0.3,3645.5,3645.4,2.74318318]
[1753317525704,1e-08,3645.5,3645.4,2.74318318]
[1753317525916,1e-08,3645.5,3645.4,3.17278318]
[1753317526091,1e-08,3645.5,3645.4,3.30958318]
[1753317526309,1e-08,3645.5,3645.4,4.72304575]
[1753317526827,1e-08,3645.5,3645.4,8.93904575]
[1753317531143,1e-08,3645.5,3645.4,4.29344575]
[1753317531445,1e-08,3645.5,3645.4,3.30958318]
[1753317531646,1e-08,3645.5,3645.4,7.09498318]
[1753317531833,0.00200001,3645.5,3645.4,2.87998318]
[1753317532041,0.00200001,3645.5,3645.4,7.09498318]
[1753317533149,0.00200001,3645.5,3645.4,2.87998318]
[1753317533452,0.00200001,3645.5,3645.4,7.09498318]
[1753317533750,0.00200001,3645.5,3645.1,0.001]
[1753317534054,0.00200001,3645.5,3645.1,4.3528]
[1753317534216,0.00200001,3645.5,3645.3,2.74321998]
[1753317534416,0.00200001,3645.5,3645.4,2.74318318]
[1753317536853,0.00200001,3645.5,3645.2,2.74331402]
[1753317537218,0.00200001,3645.5,3645.1,0.1378]
[1753317537547,0.1368,3645.3,3645.1,0.001]
[1753317539418,0.00200001,3645.5,3645.4,2.74318318]
[1753317539823,0.00200001,3645.5,3645.4,3.17278318]
[1753317541822,0.00200001,3645.5,3645.4,7.52458318]
[1753317544345,0.00200001,3645.5,3645.4,8.29648318]
[1753317545426,0.00200001,3645.5,3645.4,4.08148318]
[1753317545754,0.00200001,3645.5,3645.4,3.63216023]
[1753317545953,0.00200001,3645.5,3645.4,7.84716023]
[1753317546136,0.00200001,3645.5,3645.4,8.27676023]
[1753317546739,0.00200001,3645.5,3645.4,7.09498318]
[1753317547623,0.00200001,3645.5,3645.4,2.87998318]
[1753317547857,0.00200001,3645.5,3645.4,7.09498318]
[1753317548055,0.00200001,3645.5,3645.4,2.87998318]
[1753317548260,0.46570001,3645.5,3645.4,4.215]
[1753317548460,0.7762,3645.4,3645.1,0.001]
[1753317548860,0.49799073,3645.3,3645.1,0.001]
[1753317549035,0.7953,3645.2,3645.1,0.001]
[1753317549535,1.2613,3645.2,3645.1,0.001]
[1753317552257,4.00463369,3645.2,3645.1,0.001]
[1753317552761,4.03892536,3645.2,3645.1,0.001]
[1753317553259,1.29559167,3645.2,3645.1,0.001]
[1753317553460,1.2613,3645.2,3645.1,0.001]
[1753317554743,1.29559167,3645.2,3645.1,0.001]
[1753317555741,1.2613,3645.2,3645.1,0.001]
[1753317558169,4.00463369,3645.2,3645.1,0.001]
[1753317562039,5.0103,3645.2,3645.1,0.001]
[1753317562246,4.215,3645.2,3645.1,0.001]
[1753317563484,7.42433369,3645.2,3645.1,0.001]
[1753317564879,11.23013369,3645.2,3645.1,0.001]
[1753317567245,25.73013369,3645.2,3645.1,0.001]
[1753317567451,22.5208,3645.2,3645.1,0.001]
[1753317567651,25.73013369,3645.2,3645.1,0.001]
[1753317568891,26.28013369,3645.2,3645.1,0.001]
[1753317570179,21.51513369,3645.2,3645.1,0.001]
[1753317570391,11.23013369,3645.2,3645.1,0.001]
[1753317570964,25.73013369,3645.2,3645.1,0.001]
[1753317571163,21.51513369,3645.2,3645.1,0.001]
[1753317571363,25.73013369,3645.2,3645.1,0.001]
[1753317571915,26.28013369,3645.2,3645.1,0.001]
[1753317575363,22.06513369,3645.2,3645.1,0.001]
[1753317575570,26.28013369,3645.2,3645.1,0.001]
[1753317579418,26.28013369,3645.2,3644.5,0.001]
[1753317579419,2.74378532,3644.6,3644.5,0.001]
[1753317579713,14.33481972,3644.6,3644.5,0.001]
[1753317579920,14.76791972,3644.6,3644.5,0.001]
[1753317580293,29.26791972,3644.6,3644.5,0.001]
[1753317582598,28.83481972,3644.6,3644.5,0.001]
[1753317582795,10.71138532,3644.6,3644.5,0.001]
[1753317582980,9.95878532,3644.6,3644.5,0.001]
[1753317583308,9.95878532,3644.6,3644.5,0.4291]
[1753317583804,9.95878532,3644.6,3644.5,0.001]
[1753317584909,7.215,3644.6,3644.5,0.001]
[1753317585431,3.0,3644.6,3644.5,0.4291]
[1753317585605,3.0,3644.6,3644.5,1.2162]
[1753317585807,4.215,3644.8,3644.6,2.74373404]
[1753317586120,2.74331625,3645.3,3644.7,3.17181004]
[1753317586300,4.215,3645.2,3644.6,2.74375424]
[1753317586501,3.0,3645.1,3644.8,0.4281]
[1753317586696,0.00200001,3645.5,3644.8,1.2378]
[1753317586901,4.21600001,3645.5,3645.1,2.74333934]
[1753317587103,4.21600001,3645.5,3645.2,2.74332702]
[1753317587510,4.21600001,3645.5,3645.3,0.4281]
[1753317587730,4.21600001,3645.5,3645.3,3.17129756]
[1753317587936,0.00200001,3645.5,3645.4,3.98098318]
[1753317588235,0.00200001,3645.5,3645.4,4.65340856]
[1753317589736,0.00200001,3645.5,3645.4,4.79020856]
[1753317590906,0.00200001,3645.5,3645.4,1.2378]
[1753317594940,0.00200001,3645.5,3645.4,3.98098318]
[1753317595542,0.00200001,3645.5,3645.4,1.2378]
[1753317595838,0.00200001,3645.5,3645.4,3.98098318]
[1753317596242,0.00200001,3645.5,3645.4,1.2378]
[1753317596844,0.00200001,3645.5,3645.4,3.98098318]
[1753317597001,0.00200001,3645.5,3645.4,5.08840188]
[1753317597556,0.00200001,3645.5,3645.4,2.3452187]
[1753317598109,0.00200001,3645.5,3645.4,5.08840188]
[1753317598636,0.00200001,3645.5,3645.4,2.3452187]
[1753317599210,0.00200001,3645.5,3645.4,5.08840188]
[1753317600147,0.00200001,3645.5,3645.4,2.3452187]
[1753317600445,0.00200001,3645.5,3645.4,5.08840188]
[1753317602061,0.00200001,3645.5,3645.4,5.1017502]
[1753317602231,0.00200001,3645.5,3645.4,5.08840188]
[1753317602627,0.00200001,3645.5,3645.4,2.3452187]
[1753317602839,0.00200001,3645.5,3645.4,3.98098318]
[1753317604642,0.00200001,3645.5,3645.4,1.2378]
[1753317605366,0.00200001,3645.5,3645.3,0.1368]
[1753317605518,0.00200001,3645.5,3645.2,0.7911]
[1753317605934,0.00200001,3645.5,3645.2,1.2192]
[1753317606224,0.00200001,3645.5,3645.2,0.4281]
[1753317607537,0.00200001,3645.5,3645.1,0.001]
[1753317607538,2.74333369,3645.2,3645.1,0.001]
[1753317607757,0.03429167,3645.2,3645.1,0.001]
[1753317607929,2.7432587,3645.3,3645.1,0.001]
[1753317608142,2.77762536,3645.2,3645.1,0.001]
[1753317608860,2.74333369,3645.2,3645.1,0.001]
[1753317609327,2.74328123,3645.3,3645.1,0.001]
[1753317611056,2.74333369,3645.2,3645.1,0.001]
[1753317611257,2.74328995,3645.3,3645.1,0.001]
[1753317611445,0.00200001,3645.5,3645.1,0.001]
[1753317611757,0.1368,3645.4,3645.2,3.18453239]
[1753317611962,0.1368,3645.4,3645.3,0.4412]
[1753317612454,0.1368,3645.4,3645.1,0.7666]
[1753317612662,0.1368,3645.4,3645.1,1.2078]
[1753317613749,2.88001268,3645.4,3645.1,1.2078]
[1753317613954,0.1368,3645.4,3645.1,1.2078]
[1753317614662,0.1368,3645.2,3645.1,0.001]
[1753317618536,0.1368,3645.2,3645.1,0.4422]
[1753317620669,0.1368,3645.2,3645.1,0.001]
[1753317622238,0.17109167,3645.2,3645.1,0.001]
[1753317622450,2.88013369,3645.2,3645.1,0.001]
[1753317622650,2.91442536,3645.2,3645.1,0.001]
[1753317622846,4.13412536,3645.2,3645.1,0.001]
[1753317623581,18.63412536,3645.2,3645.1,0.001]
[1753317623782,18.59983369,3645.2,3645.1,0.001]
[1753317625079,7.86743369,3645.2,3645.1,0.001]
[1753317625971,3.65643369,3645.2,3645.1,0.001]
[1753317626150,7.86743369,3645.2,3645.1,0.001]
[1753317629488,11.31083369,3645.2,3645.1,0.001]
[1753317632360,10.86743369,3645.2,3645.1,0.001]
[1753317634474,11.31083369,3645.2,3645.1,0.001]
[1753317636587,3.1368,3645.2,3645.1,0.001]
[1753317636786,10.09113369,3645.2,3645.1,0.001]
[1753317638881,7.3478,3645.2,3645.1,0.001]
[1753317641185,7.3498,3645.2,3645.1,0.001]
[1753317641593,7.3498,3645.2,3645.1,0.464]
[1753317642172,7.3488,3645.2,3645.1,0.001]
[1753317642479,7.3488,3645.2,3645.1,0.464]
[1753317644664,0.1388,3645.2,3645.1,0.464]
[1753317644978,4.3488,3645.2,3645.1,0.464]
[1753317645375,0.1388,3645.2,3645.1,3.20740895]
[1753317649202,0.17309167,3645.2,3645.1,0.464]
[1753317649702,0.17309167,3645.2,3645.1,3.20740895]
[1753317649903,0.1388,3645.2,3645.1,3.20740895]
[1753317650108,0.1388,3645.2,3645.1,0.464]
[1753317650486,0.1388,3645.2,3645.1,3.20740895]
[1753317651205,0.1388,3645.2,3645.1,0.464]
[1753317651413,0.17309167,3645.2,3645.1,0.001]
[1753317651583,9.4515762,3645.2,3645.1,0.001]
[1753317651787,9.41728453,3645.2,3645.1,0.001]
[1753317652570,8.95658453,3645.2,3645.1,0.001]
[1753317652773,6.21325084,3645.2,3645.1,0.001]
[1753317652972,8.95658453,3645.2,3645.1,0.001]
[1753317655118,3.1388,3645.2,3645.1,0.001]
[1753317655280,3.1388,3645.2,3645.1,0.464]
[1753317655602,7.3478,3645.2,3645.1,0.464]
[1753317657517,7.3478,3645.2,3645.1,3.20740895]
[1753317657518,0.002,3645.2,3645.1,3.20740895]
[1753317657812,0.002,3645.2,3645.1,0.464]
[1753317658188,0.002,3645.2,3645.1,3.20740895]
[1753317659424,0.002,3645.2,3645.1,0.001]
[1753317659920,0.002,3645.2,3645.1,0.464]
[1753317660322,0.002,3645.2,3645.1,3.20740895]
[1753317660900,0.002,3645.2,3645.1,0.464]
[1753317661095,0.002,3645.2,3645.1,3.20740895]
[1753317661300,0.002,3645.2,3645.1,3.88552904]
[1753317664028,0.002,3645.2,3645.1,0.464]
[1753317664635,0.002,3645.2,3645.1,0.001]
[1753317664636,9.95333369,3645.2,3645.1,0.001]
[1753317672109,7.21,3645.2,3645.1,0.001]
[1753317672311,9.95333369,3645.2,3645.1,0.001]
[1753317673308,7.21,3645.2,3645.1,0.001]
[1753317673744,9.95333369,3645.2,3645.1,0.001]
[1753317686457,7.21,3645.2,3645.1,0.001]
[1753317687211,9.95333369,3645.2,3645.1,0.001]
[1753317687857,10.39223369,3645.2,3645.1,0.001]
[1753317688988,7.21,3645.2,3645.1,0.001]
[1753317689200,7.207,3645.2,3645.1,0.4491]
[1753317689691,9.95033369,3645.2,3645.1,0.001]
[1753317691956,5.74533369,3645.2,3645.1,0.001]
[1753317692163,7.207,3645.2,3645.1,0.4491]
[1753317692754,5.74533369,3645.2,3645.1,0.001]
[1753317692956,9.95033369,3645.2,3645.1,0.001]
[1753317695084,4.207,3645.2,3645.1,0.001]
[1753317695393,4.207,3645.2,3645.1,0.4491]
[1753317696175,4.207,3645.2,3645.1,0.001]
[1753317697103,6.95033369,3645.2,3645.1,0.001]
[1753317697505,4.207,3645.2,3645.1,0.001]
[1753317698397,6.95033369,3645.2,3645.1,0.001]
[1753317699113,7.207,3645.2,3645.1,0.001]
[1753317699313,9.95033369,3645.2,3645.1,0.001]
[1753317699771,11.22423369,3645.2,3645.1,0.001]
[1753317700416,10.77103369,3645.2,3645.1,0.001]
[1753317702109,9.94933369,3645.2,3645.1,0.001]
[1753317702324,3.002,3645.2,3645.1,0.4684]
[1753317702615,7.206,3645.2,3645.1,0.4684]
[1753317702780,7.205,3645.2,3645.1,0.4684]
[1753317702977,0.002,3645.2,3645.1,0.4684]
[1753317703177,0.002,3645.2,3645.1,0.78960028]
[1753317703373,0.002,3645.2,3645.1,1.57270028]
[1753317703989,0.002,3645.2,3645.1,4.31610923]
[1753317704395,0.002,3645.2,3645.1,4.32946319]
[1753317705478,0.002,3645.2,3645.1,4.31610923]
[1753317705679,0.002,3645.2,3645.1,4.32946319]
[1753317705917,0.002,3645.2,3645.1,7.40391403]
[1753317706080,0.002,3645.2,3645.1,7.39056007]
[1753317707300,0.002,3645.2,3645.1,10.39056007]
[1753317711985,0.002,3645.2,3645.1,14.59256007]
[1753317712627,0.002,3645.2,3645.1,8.51810923]
[1753317713321,0.002,3645.2,3645.1,4.31610923]
[1753317713620,0.002,3645.2,3645.1,8.51810923]
[1753317713925,0.002,3645.2,3645.1,4.31610923]
[1753317714097,0.002,3645.2,3645.1,8.51710923]
[1753317714819,0.002,3645.2,3645.1,4.31610923]
[1753317715002,0.002,3645.2,3645.1,8.51710923]
[1753317717729,0.002,3645.2,3645.1,4.31610923]
[1753317717917,0.002,3645.2,3645.1,8.53046319]
[1753317718121,0.002,3645.2,3645.1,8.51710923]
[1753317718638,0.002,3645.2,3645.1,4.31610923]
[1753317718807,0.002,3645.2,3645.1,8.51710923]
[1753317719843,0.002,3645.2,3645.1,4.31610923]
[1753317720009,0.002,3645.2,3645.1,8.51710923]
[1753317722613,0.002,3645.2,3645.1,8.65390923]
[1753317724167,0.002,3645.2,3645.1,8.65290923]
[1753317726662,0.002,3645.2,3645.1,4.3378]
[1753317726865,0.002,3645.2,3645.1,4.201]
[1753317727448,0.002,3645.2,3645.1,0.001]
[1753317729044,0.002,3645.2,3645.1,3.21180895]
[1753317729348,0.002,3645.2,3645.1,4.14070895]
[1753317729544,0.002,3645.2,3645.1,4.76447959]
[1753317729709,0.002,3645.2,3645.1,4.29707959]
[1753317730110,0.002,3645.2,3645.1,8.49707959]
[1753317730533,0.002,3645.2,3645.1,8.96797959]
[1753317730925,0.002,3645.2,3645.1,8.49707959]
[1753317731122,0.002,3645.2,3645.1,4.3378]
[1753317731339,0.002,3645.2,3645.1,4.201]
[1753317731848,0.457,3645.2,3645.1,4.2]
[1753317732148,0.002,3645.2,3645.1,0.001]
[1753317732323,0.002,3645.2,3645.1,2.74440895]
[1753317732526,0.002,3645.2,3645.1,0.001]
[1753317740985,0.002,3645.2,3645.1,2.74440895]
[1753317741185,0.002,3645.2,3645.1,3.21530895]
[1753317741565,0.002,3645.2,3645.1,8.05774589]
[1753317741767,0.002,3645.2,3645.1,12.25674589]
[1753317742977,0.002,3645.2,3645.1,8.05774589]
[1753317743174,0.002,3645.2,3645.1,12.25674589]
[1753317743886,0.002,3645.2,3645.1,9.18229505]
[1753317744093,0.002,3645.2,3645.1,6.94340895]
[1753317744993,0.002,3645.2,3645.1,6.94240895]
[1753317745357,0.002,3645.2,3645.1,7.41330895]
[1753317746355,0.002,3645.2,3645.1,3.21530895]
[1753317746555,0.002,3645.2,3645.1,6.94240895]
[1753317747392,0.002,3645.2,3645.1,4.199]
[1753317747591,0.1388,3645.2,3645.1,4.199]
[1753317748093,0.5938,3645.2,3645.1,0.001]
[1753317748293,3.37142536,3645.2,3645.1,0.001]
[1753317749787,3.33713369,3645.2,3645.1,0.001]
[1753317749986,0.5938,3645.2,3645.1,0.001]
[1753317751465,3.33713369,3645.2,3645.1,0.001]